[Event "Betsys MČR v online bleskovém šachu 2021"]
[Site "Chess.com"]
[Date "2021.04.17"]
[Round "8"]
[White "Krvelacny_krecek"]
[Black "jachym08"]
[Result "0-1"]
[WhiteElo "2387"]
[BlackElo "2259"]
[TimeControl "180+1"]
[EndTime "10:22:18 PDT"]
[Termination "Uživatel jachym08 zvítězil na čas"]

1. d4 {[%clk 0:03:00.9]} 1... Nf6 {[%clk 0:02:58.7]} 2. c4 {[%clk 0:03:00.5]}
2... g6 {[%clk 0:02:58.5]} 3. g3 {[%clk 0:03:00.7]} 3... d5 {[%clk 0:02:57.5]}
4. cxd5 {[%clk 0:02:59.7]} 4... Nxd5 {[%clk 0:02:58.4]} 5. Bg2 {[%clk
0:02:59.8]} 5... Bg7 {[%clk 0:02:58.5]} 6. e4 {[%clk 0:03:00]} 6... Nb6 {[%clk
0:02:58.5]} 7. Ne2 {[%clk 0:03:00.3]} 7... O-O {[%clk 0:02:57.3]} 8. O-O {[%clk
0:02:59.2]} 8... Bg4 {[%clk 0:02:52.6]} 9. f3 {[%clk 0:02:57.5]} 9... Bd7 {[%clk
0:02:51]} 10. Nbc3 {[%clk 0:02:50.5]} 10... Na6 {[%clk 0:02:50.8]} 11. b3 {[%clk
0:02:47.5]} 11... c5 {[%clk 0:02:48.3]} 12. d5 {[%clk 0:02:42.7]} 12... c4
{[%clk 0:02:47.7]} 13. Be3 {[%clk 0:02:35.5]} 13... Rc8 {[%clk 0:02:41.6]} 14.
Bd4 {[%clk 0:02:33.1]} 14... Nb4 {[%clk 0:02:14.8]} 15. Bxg7 {[%clk 0:02:30.4]}
15... Kxg7 {[%clk 0:02:15.7]} 16. Qd4+ {[%clk 0:02:12.1]} 16... Kg8 {[%clk
0:02:10.5]} 17. Rac1 {[%clk 0:02:11.2]} 17... Nd3 {[%clk 0:02:02.1]} 18. Rc2
{[%clk 0:02:08.7]} 18... e5 {[%clk 0:01:55.2]} 19. Qe3 {[%clk 0:02:03.2]} 19...
Nb4 {[%clk 0:01:54.4]} 20. Rd1 {[%clk 0:01:52.8]} 20... Nxc2 {[%clk 0:01:53.8]}
21. Qd2 {[%clk 0:01:47.3]} 21... Nd4 {[%clk 0:01:53.2]} 22. Nxd4 {[%clk
0:01:44.3]} 22... exd4 {[%clk 0:01:54.1]} 23. Qxd4 {[%clk 0:01:44.6]} 23... cxb3
{[%clk 0:01:53.1]} 24. axb3 {[%clk 0:01:44.8]} 24... Qc7 {[%clk 0:01:52.9]} 25.
Ne2 {[%clk 0:01:40.7]} 25... Qc5 {[%clk 0:01:53.1]} 26. f4 {[%clk 0:01:37.2]}
26... Qxd4+ {[%clk 0:01:52.5]} 27. Nxd4 {[%clk 0:01:36.9]} 27... Rc3 {[%clk
0:01:49.7]} 28. e5 {[%clk 0:01:36.1]} 28... Bf5 {[%clk 0:01:39.4]} 29. d6 {[%clk
0:01:24.2]} 29... Rd3 {[%clk 0:01:37.1]} 30. Rxd3 {[%clk 0:01:20.2]} 30... Bxd3
{[%clk 0:01:38]} 31. Bxb7 {[%clk 0:01:19.9]} 31... Rb8 {[%clk 0:01:35.6]} 32.
Bc6 {[%clk 0:01:17.1]} 32... Bf5 {[%clk 0:01:30.5]} 33. Kg2 {[%clk 0:01:12.9]}
33... Rc8 {[%clk 0:01:27.1]} 34. Kf3 {[%clk 0:01:04.9]} 34... Bd7 {[%clk
0:01:26.8]} 35. Be4 {[%clk 0:00:55.6]} 35... Rc3+ {[%clk 0:01:26.2]} 36. Ke2
{[%clk 0:00:53.5]} 36... a5 {[%clk 0:01:24.4]} 37. Kd2 {[%clk 0:00:53.5]} 37...
Rc8 {[%clk 0:01:24.2]} 38. Bf3 {[%clk 0:00:43.3]} 38... a4 {[%clk 0:01:23.5]}
39. bxa4 {[%clk 0:00:43.6]} 39... Bxa4 {[%clk 0:01:22.8]} 40. g4 {[%clk
0:00:41.3]} 40... Bd7 {[%clk 0:01:16.1]} 41. Kd3 {[%clk 0:00:37.6]} 41... h6
{[%clk 0:01:11.2]} 42. f5 {[%clk 0:00:37.6]} 42... Na4 {[%clk 0:01:01.8]} 43.
Bd5 {[%clk 0:00:30.2]} 43... Nc5+ {[%clk 0:00:59.9]} 44. Ke3 {[%clk 0:00:29.9]}
44... gxf5 {[%clk 0:01:00.1]} 45. gxf5 {[%clk 0:00:29.5]} 45... Re8 {[%clk
0:00:59.9]} 46. e6 {[%clk 0:00:13.9]} 46... fxe6 {[%clk 0:00:59.4]} 47. fxe6
{[%clk 0:00:14.1]} 47... Kh8 {[%clk 0:00:46.2]} 48. e7 {[%clk 0:00:07.7]} 48...
Rb8 {[%clk 0:00:40.3]} 49. Bf7 {[%clk 0:00:06.6]} 49... Kg7 {[%clk 0:00:38.9]}
50. Bh5 {[%clk 0:00:06.4]} 50... Ra8 {[%clk 0:00:34.7]} 51. Kf4 {[%clk
0:00:05.5]} 51... Be8 {[%clk 0:00:31.7]} 52. Ke5 {[%clk 0:00:05.5]} 52... Bxh5
{[%clk 0:00:31.2]} 53. Nf5+ {[%clk 0:00:05.5]} 53... Kf7 {[%clk 0:00:29.8]} 54.
Nxh6+ {[%clk 0:00:05.5]} 54... Kg6 {[%clk 0:00:29.6]} 55. Nf5 {[%clk 0:00:04.5]}
55... Nd7+ {[%clk 0:00:27.1]} 56. Ke6 {[%clk 0:00:04.2]} 56... Bg4 {[%clk
0:00:25.5]} 57. Kxd7 {[%clk 0:00:02.8]} 57... Bxf5+ {[%clk 0:00:25.7]} 58. Kc7
{[%clk 0:00:03.2]} 58... Kf7 {[%clk 0:00:25.6]} 59. Kb7 {[%clk 0:00:03.3]} 59...
Rh8 {[%clk 0:00:23.4]} 60. Kc7 {[%clk 0:00:02.5]} 60... Rxh2 {[%clk 0:00:20.6]}
61. d7 {[%clk 0:00:02.7]} 61... Bxd7 {[%clk 0:00:20.7]} 0-1

[Event "Betsys MČR v online bleskovém šachu 2021"]
[Site "Chess.com"]
[Date "2021.04.17"]
[Round "8"]
[White "petrgnojek"]
[Black "Diamantidis_13"]
[Result "0-1"]
[WhiteElo "2259"]
[BlackElo "2449"]
[TimeControl "180+1"]
[EndTime "10:22:20 PDT"]
[Termination "Uživatel Diamantidis_13 zvítězil na čas"]

1. d4 {[%clk 0:03:00.9]} 1... Nf6 {[%clk 0:02:59.3]} 2. c4 {[%clk 0:03:01]} 2...
e6 {[%clk 0:02:58.7]} 3. Nc3 {[%clk 0:03:00.7]} 3... Bb4 {[%clk 0:02:58.7]} 4.
Qc2 {[%clk 0:03:00.9]} 4... d6 {[%clk 0:02:59]} 5. e4 {[%clk 0:02:53.7]} 5...
Nbd7 {[%clk 0:02:34.9]} 6. Nf3 {[%clk 0:02:50.9]} 6... e5 {[%clk 0:02:33.6]} 7.
Be3 {[%clk 0:02:33.5]} 7... Bxc3+ {[%clk 0:02:28]} 8. bxc3 {[%clk 0:02:32.5]}
8... b6 {[%clk 0:02:26.1]} 9. h3 {[%clk 0:02:24.6]} 9... Bb7 {[%clk 0:02:08.6]}
10. Bd3 {[%clk 0:02:23.5]} 10... Qe7 {[%clk 0:02:04.3]} 11. Nd2 {[%clk
0:02:18.1]} 11... Nh5 {[%clk 0:01:34]} 12. Be2 {[%clk 0:01:48]} 12... Nf4 {[%clk
0:01:31.9]} 13. Bf3 {[%clk 0:01:47.7]} 13... O-O {[%clk 0:01:12.1]} 14. g3
{[%clk 0:01:30.1]} 14... f5 {[%clk 0:01:07.8]} 15. gxf4 {[%clk 0:01:11.5]} 15...
exf4 {[%clk 0:01:06.6]} 16. O-O-O {[%clk 0:00:52.3]} 16... fxe3 {[%clk
0:01:05.8]} 17. fxe3 {[%clk 0:00:51.8]} 17... f4 {[%clk 0:01:03]} 18. exf4
{[%clk 0:00:34]} 18... Rxf4 {[%clk 0:01:03.9]} 19. Rhf1 {[%clk 0:00:26.8]} 19...
Raf8 {[%clk 0:01:02.7]} 20. Bg2 {[%clk 0:00:25.1]} 20... Qg5 {[%clk 0:00:57.8]}
21. Rxf4 {[%clk 0:00:15]} 21... Rxf4 {[%clk 0:00:56.8]} 22. Rf1 {[%clk
0:00:12.5]} 22... Nf6 {[%clk 0:00:43]} 23. Rxf4 {[%clk 0:00:09.6]} 23... Qxf4
{[%clk 0:00:43.9]} 24. Qd3 {[%clk 0:00:09.5]} 24... Qf2 {[%clk 0:00:38.9]} 25.
Qf3 {[%clk 0:00:05.6]} 25... Qxf3 {[%clk 0:00:36.4]} 26. Bxf3 {[%clk 0:00:05.1]}
26... Bc8 {[%clk 0:00:36.6]} 27. Bg2 {[%clk 0:00:04.4]} 27... Nh5 {[%clk
0:00:35.3]} 28. Bf1 {[%clk 0:00:03.2]} 28... Nf4 {[%clk 0:00:34.2]} 29. h4
{[%clk 0:00:02.9]} 29... Bg4 {[%clk 0:00:26.2]} 30. e5 {[%clk 0:00:01.6]} 30...
dxe5 {[%clk 0:00:24.4]} 31. dxe5 {[%clk 0:00:02.5]} 31... Ng6 {[%clk 0:00:24.7]}
32. Bd3 {[%clk 0:00:02]} 32... Nxe5 {[%clk 0:00:22.5]} 33. Be4 {[%clk 0:00:02]}
33... Be6 {[%clk 0:00:19.4]} 34. Bd5 {[%clk 0:00:01.7]} 34... Bxd5 {[%clk
0:00:19]} 35. cxd5 {[%clk 0:00:02.6]} 35... Kf7 {[%clk 0:00:18.9]} 36. Ne4
{[%clk 0:00:02.1]} 36... h6 {[%clk 0:00:16.9]} 37. h5 {[%clk 0:00:01.8]} 37...
Ke7 {[%clk 0:00:16]} 38. Ng3 {[%clk 0:00:01.7]} 38... Nd3+ {[%clk 0:00:14.1]}
39. Kd2 {[%clk 0:00:01.2]} 39... Nf4 {[%clk 0:00:15]} 40. Nf5+ {[%clk
0:00:01.3]} 40... Kf6 {[%clk 0:00:15.5]} 41. d6 {[%clk 0:00:01.7]} 41... cxd6
{[%clk 0:00:14]} 42. Nxd6 {[%clk 0:00:02.6]} 42... Nxh5 {[%clk 0:00:14.3]} 43.
Nc8 {[%clk 0:00:03.3]} 43... Nf4 {[%clk 0:00:14]} 44. Nxa7 {[%clk 0:00:03.5]}
44... g5 {[%clk 0:00:14.5]} 45. Nc8 {[%clk 0:00:03.7]} 45... b5 {[%clk
0:00:13.5]} 46. Nd6 {[%clk 0:00:03.1]} 46... h5 {[%clk 0:00:13.5]} 47. Nxb5
{[%clk 0:00:03.4]} 47... h4 {[%clk 0:00:14]} 48. a4 {[%clk 0:00:03.5]} 48... h3
{[%clk 0:00:14.4]} 49. Nd6 {[%clk 0:00:02]} 49... Ke5 {[%clk 0:00:12.8]} 50.
Nc4+ {[%clk 0:00:02.1]} 50... Ke4 {[%clk 0:00:12.5]} 51. Ne3 {[%clk 0:00:02.2]}
51... Kf3 {[%clk 0:00:12]} 52. Nf1 {[%clk 0:00:01.9]} 52... Kf2 {[%clk
0:00:10.6]} 53. Ne3 {[%clk 0:00:02.1]} 53... h2 {[%clk 0:00:10.4]} 54. Ng4+
{[%clk 0:00:02.2]} 54... Kg3 {[%clk 0:00:10.9]} 55. Nxh2 {[%clk 0:00:01.5]}
55... Kxh2 {[%clk 0:00:11.8]} 56. a5 {[%clk 0:00:01.7]} 56... Ne6 {[%clk
0:00:12.5]} 57. a6 {[%clk 0:00:02]} 57... Nc7 {[%clk 0:00:12.6]} 58. a7 {[%clk
0:00:02.2]} 58... g4 {[%clk 0:00:13.2]} 0-1

[Event "Betsys MČR v online bleskovém šachu 2021"]
[Site "Chess.com"]
[Date "2021.04.17"]
[Round "8"]
[White "HonzaRubes95"]
[Black "Eliska0107"]
[Result "0-1"]
[WhiteElo "2460"]
[BlackElo "2030"]
[TimeControl "180+1"]
[EndTime "10:22:21 PDT"]
[Termination "Uživatel Eliska0107 zvítězil na čas"]

1. Nf3 {[%clk 0:03:00.9]} 1... c5 {[%clk 0:02:58.8]} 2. e4 {[%clk 0:02:58.7]}
2... Nc6 {[%clk 0:02:58.5]} 3. Nc3 {[%clk 0:02:54.7]} 3... d6 {[%clk 0:02:58.3]}
4. d4 {[%clk 0:02:54.2]} 4... cxd4 {[%clk 0:02:57.1]} 5. Nxd4 {[%clk 0:02:54.4]}
5... Nf6 {[%clk 0:02:57.3]} 6. Be2 {[%clk 0:02:48.9]} 6... Bd7 {[%clk
0:02:56.3]} 7. O-O {[%clk 0:02:47.5]} 7... e6 {[%clk 0:02:55.8]} 8. Be3 {[%clk
0:02:42]} 8... Be7 {[%clk 0:02:54.4]} 9. Nb3 {[%clk 0:02:29.7]} 9... O-O {[%clk
0:02:53.6]} 10. f4 {[%clk 0:02:29.8]} 10... a6 {[%clk 0:02:48.6]} 11. a4 {[%clk
0:02:28.8]} 11... b6 {[%clk 0:02:38.2]} 12. g4 {[%clk 0:02:23.8]} 12... Qc7
{[%clk 0:02:36.1]} 13. g5 {[%clk 0:02:23.9]} 13... Ne8 {[%clk 0:02:35.7]} 14. f5
{[%clk 0:02:08.3]} 14... exf5 {[%clk 0:02:25.5]} 15. Nd5 {[%clk 0:02:07.1]}
15... Qd8 {[%clk 0:02:24.5]} 16. Bxb6 {[%clk 0:02:07]} 16... Qb8 {[%clk
0:02:14.1]} 17. Nxe7+ {[%clk 0:01:47.7]} 17... Nxe7 {[%clk 0:02:13.4]} 18. a5
{[%clk 0:01:42.3]} 18... fxe4 {[%clk 0:02:10.2]} 19. Qd4 {[%clk 0:01:37.6]}
19... Bc6 {[%clk 0:01:59.6]} 20. c4 {[%clk 0:01:27.7]} 20... Nc8 {[%clk
0:01:53]} 21. Bg4 {[%clk 0:01:22.6]} 21... Nxb6 {[%clk 0:01:51.5]} 22. axb6
{[%clk 0:01:23.5]} 22... a5 {[%clk 0:01:45.1]} 23. Rxa5 {[%clk 0:01:19.2]} 23...
Qd8 {[%clk 0:01:28.7]} 24. Rxa8 {[%clk 0:01:12.8]} 24... Bxa8 {[%clk 0:01:27.8]}
25. h4 {[%clk 0:01:09.3]} 25... d5 {[%clk 0:01:23.2]} 26. c5 {[%clk 0:01:06.2]}
26... Nd6 {[%clk 0:01:19]} 27. cxd6 {[%clk 0:01:04.6]} 27... Qxd6 {[%clk
0:01:18.7]} 28. Kg2 {[%clk 0:00:55.4]} 28... h6 {[%clk 0:01:14.9]} 29. Nc5
{[%clk 0:00:46.4]} 29... Bc6 {[%clk 0:01:06.2]} 30. b7 {[%clk 0:00:41.2]} 30...
hxg5 {[%clk 0:01:00.6]} 31. hxg5 {[%clk 0:00:39.3]} 31... Qe7 {[%clk 0:00:39.3]}
32. Rf5 {[%clk 0:00:34]} 32... Bxb7 {[%clk 0:00:34.9]} 33. Nxb7 {[%clk
0:00:33.4]} 33... Qxb7 {[%clk 0:00:35]} 34. Rxd5 {[%clk 0:00:33.8]} 34... e3
{[%clk 0:00:31.1]} 35. Bf3 {[%clk 0:00:33]} 35... Re8 {[%clk 0:00:22.4]} 36. Re5
{[%clk 0:00:25.4]} 36... Qb8 {[%clk 0:00:17.6]} 37. Rxe8+ {[%clk 0:00:24.1]}
37... Qxe8 {[%clk 0:00:17.7]} 38. Qe4 {[%clk 0:00:24.4]} 38... Qb5 {[%clk
0:00:15.4]} 39. Qxe3 {[%clk 0:00:15.6]} 39... Qxb2+ {[%clk 0:00:15]} 40. Kg3
{[%clk 0:00:15.1]} 40... Qb8+ {[%clk 0:00:14.5]} 41. Qf4 {[%clk 0:00:14.5]}
41... Qb5 {[%clk 0:00:14.3]} 42. Kg4 {[%clk 0:00:10.6]} 42... Qb6 {[%clk
0:00:12.6]} 43. Bd5 {[%clk 0:00:08.3]} 43... Qg1+ {[%clk 0:00:11.2]} 44. Kf3
{[%clk 0:00:06.5]} 44... Qd1+ {[%clk 0:00:09.4]} 45. Ke4 {[%clk 0:00:06.2]}
45... Qc2+ {[%clk 0:00:09]} 46. Ke5 {[%clk 0:00:06.3]} 46... Qc3+ {[%clk
0:00:08.4]} 47. Kd6 {[%clk 0:00:05.7]} 47... Qa3+ {[%clk 0:00:07.8]} 48. Kd7
{[%clk 0:00:04.4]} 48... Qa7+ {[%clk 0:00:07.6]} 49. Qc7 {[%clk 0:00:04.1]}
49... Qa4+ {[%clk 0:00:06.6]} 50. Ke7 {[%clk 0:00:03.5]} 50... Qa3+ {[%clk
0:00:05.4]} 51. Qd6 {[%clk 0:00:03.1]} 51... Qe3+ {[%clk 0:00:05.4]} 52. Kd8
{[%clk 0:00:02.7]} 52... Qxg5+ {[%clk 0:00:05.4]} 53. Kd7 {[%clk 0:00:02]} 53...
Qf5+ {[%clk 0:00:05.1]} 54. Ke8 {[%clk 0:00:02]} 54... g6 {[%clk 0:00:04.8]} 55.
Qe7 {[%clk 0:00:01.5]} 55... Kg7 {[%clk 0:00:04.9]} 0-1

[Event "Betsys MČR v online bleskovém šachu 2021"]
[Site "Chess.com"]
[Date "2021.04.17"]
[Round "8"]
[White "sachmaty8"]
[Black "vasekpaulus"]
[Result "0-1"]
[WhiteElo "1817"]
[BlackElo "2058"]
[TimeControl "180+1"]
[EndTime "10:22:22 PDT"]
[Termination "Uživatel vasekpaulus zvítězil po vzdání soupeře"]

1. e4 {[%clk 0:03:00.1]} 1... c5 {[%clk 0:02:59.8]} 2. Nf3 {[%clk 0:02:59.5]}
2... Nc6 {[%clk 0:02:59.6]} 3. c3 {[%clk 0:02:58.5]} 3... d5 {[%clk 0:02:55.9]}
4. exd5 {[%clk 0:02:56]} 4... Qxd5 {[%clk 0:02:55.7]} 5. d4 {[%clk 0:02:56.5]}
5... Nf6 {[%clk 0:02:51.9]} 6. Be2 {[%clk 0:02:53.5]} 6... e6 {[%clk 0:02:47.8]}
7. O-O {[%clk 0:02:53.1]} 7... Be7 {[%clk 0:02:47.2]} 8. Bf4 {[%clk 0:02:52.8]}
8... cxd4 {[%clk 0:02:38.9]} 9. cxd4 {[%clk 0:02:52.4]} 9... O-O {[%clk
0:02:38.3]} 10. Nc3 {[%clk 0:02:52.2]} 10... Qf5 {[%clk 0:02:32.5]} 11. Bg3
{[%clk 0:02:37.1]} 11... Rd8 {[%clk 0:02:31.3]} 12. Qa4 {[%clk 0:02:34.2]} 12...
Ne4 {[%clk 0:02:15.2]} 13. Bb5 {[%clk 0:02:11.6]} 13... Nxg3 {[%clk 0:01:48.4]}
14. hxg3 {[%clk 0:02:01.6]} 14... Bd7 {[%clk 0:01:45.2]} 15. Rad1 {[%clk
0:01:31.9]} 15... a6 {[%clk 0:01:44.2]} 16. Bd3 {[%clk 0:01:30.7]} 16... Qh5
{[%clk 0:01:43.4]} 17. Qb3 {[%clk 0:01:25.9]} 17... b5 {[%clk 0:01:33.3]} 18. d5
{[%clk 0:01:07.3]} 18... Ne5 {[%clk 0:01:17.7]} 19. Nxe5 {[%clk 0:00:57.6]}
19... Qxe5 {[%clk 0:01:17.2]} 20. Qc2 {[%clk 0:00:54.5]} 20... h6 {[%clk
0:01:13]} 21. Rfe1 {[%clk 0:00:50.6]} 21... Qc7 {[%clk 0:00:53.7]} 22. Qe2
{[%clk 0:00:30.5]} 22... b4 {[%clk 0:00:41.6]} 23. dxe6 {[%clk 0:00:12.9]} 23...
Bxe6 {[%clk 0:00:39]} 24. Ne4 {[%clk 0:00:12.8]} 24... Rac8 {[%clk 0:00:34.4]}
25. b3 {[%clk 0:00:10.3]} 25... a5 {[%clk 0:00:29.2]} 26. Nd2 {[%clk 0:00:09.7]}
26... Qd7 {[%clk 0:00:26.4]} 27. Nc4 {[%clk 0:00:09.3]} 27... Qa7 {[%clk
0:00:19.8]} 28. Qe4 {[%clk 0:00:08.4]} 28... g6 {[%clk 0:00:19.5]} 29. Qe2
{[%clk 0:00:07.8]} 29... Rd5 {[%clk 0:00:16.9]} 30. Bxg6 {[%clk 0:00:06.7]}
30... Rxd1 {[%clk 0:00:13.9]} 31. Rxd1 {[%clk 0:00:06.4]} 31... Kg7 {[%clk
0:00:13.2]} 32. Bd3 {[%clk 0:00:05.7]} 32... Bf6 {[%clk 0:00:13]} 33. Re1 {[%clk
0:00:05.4]} 33... Rd8 {[%clk 0:00:12.1]} 34. Qe4 {[%clk 0:00:05.4]} 34... Qd4
{[%clk 0:00:12.1]} 35. Qh7+ {[%clk 0:00:04.8]} 35... Kf8 {[%clk 0:00:12.2]} 36.
Be4 {[%clk 0:00:04.5]} 36... Qc3 {[%clk 0:00:11.2]} 37. Rf1 {[%clk 0:00:03.1]}
37... Ke7 {[%clk 0:00:11.3]} 38. Qxh6 {[%clk 0:00:03.1]} 38... Rd4 {[%clk
0:00:10.7]} 39. Qe3 {[%clk 0:00:03.5]} 39... Qxe3 {[%clk 0:00:09.8]} 40. Nxe3
{[%clk 0:00:04.4]} 40... Rxe4 {[%clk 0:00:09.9]} 41. Rd1 {[%clk 0:00:04.5]}
41... Bd4 {[%clk 0:00:09.6]} 42. Nc4 {[%clk 0:00:04.5]} 42... Bxc4 {[%clk
0:00:09.3]} 43. bxc4 {[%clk 0:00:05.4]} 43... Bc3 {[%clk 0:00:09.5]} 44. c5
{[%clk 0:00:05.4]} 44... Rc4 {[%clk 0:00:09.4]} 45. Rd5 {[%clk 0:00:04.7]} 45...
a4 {[%clk 0:00:08]} 46. Kh2 {[%clk 0:00:04.7]} 46... a3 {[%clk 0:00:08.3]} 47.
c6 {[%clk 0:00:04.3]} 47... Rxc6 {[%clk 0:00:08.3]} 48. Rb5 {[%clk 0:00:04.6]}
48... Rc4 {[%clk 0:00:07.6]} 49. f3 {[%clk 0:00:04.7]} 49... Rd4 {[%clk
0:00:07.9]} 50. g4 {[%clk 0:00:04.6]} 50... Rd2 {[%clk 0:00:08.1]} 51. Kg3
{[%clk 0:00:04.7]} 51... Rxa2 {[%clk 0:00:08.2]} 52. Rd5 {[%clk 0:00:04.5]}
52... Rd2 {[%clk 0:00:08.2]} 53. Rc5 {[%clk 0:00:05.4]} 53... a2 {[%clk
0:00:08.2]} 54. Ra5 {[%clk 0:00:05.1]} 54... a1=Q {[%clk 0:00:08.2]} 55. Rxa1
{[%clk 0:00:05.2]} 55... Bxa1 {[%clk 0:00:08.8]} 0-1

[Event "Betsys MČR v online bleskovém šachu 2021"]
[Site "Chess.com"]
[Date "2021.04.17"]
[Round "8"]
[White "FormerProdigy"]
[Black "MartinHollan"]
[Result "1-0"]
[WhiteElo "2868"]
[BlackElo "2604"]
[TimeControl "180+1"]
[EndTime "10:22:23 PDT"]
[Termination "Uživatel FormerProdigy zvítězil po vzdání soupeře"]

1. e4 {[%clk 0:03:00.9]} 1... c5 {[%clk 0:02:59.4]} 2. Nf3 {[%clk 0:03:00.4]}
2... Nc6 {[%clk 0:02:59.5]} 3. Nc3 {[%clk 0:02:59.7]} 3... g6 {[%clk 0:02:59.3]}
4. d4 {[%clk 0:02:59.5]} 4... cxd4 {[%clk 0:02:59.1]} 5. Nxd4 {[%clk 0:03:00.4]}
5... Bg7 {[%clk 0:02:58.9]} 6. Be3 {[%clk 0:03:01]} 6... Nf6 {[%clk 0:02:58.8]}
7. Bc4 {[%clk 0:02:59.7]} 7... O-O {[%clk 0:02:58.5]} 8. Bb3 {[%clk 0:02:58.5]}
8... Re8 {[%clk 0:02:58.5]} 9. f3 {[%clk 0:02:57.7]} 9... d5 {[%clk 0:02:56.5]}
10. exd5 {[%clk 0:02:34.2]} 10... Na5 {[%clk 0:02:47.2]} 11. Nde2 {[%clk
0:02:30.6]} 11... Nxb3 {[%clk 0:02:44.5]} 12. axb3 {[%clk 0:02:31.5]} 12... b6
{[%clk 0:02:44.9]} 13. Qd2 {[%clk 0:02:26.5]} 13... Bb7 {[%clk 0:02:42]} 14. Rd1
{[%clk 0:02:20.4]} 14... Qd7 {[%clk 0:02:27.6]} 15. O-O {[%clk 0:02:16.9]} 15...
Rad8 {[%clk 0:02:26]} 16. Bd4 {[%clk 0:01:56.3]} 16... Qc8 {[%clk 0:02:02.9]}
17. Nf4 {[%clk 0:01:46.6]} 17... g5 {[%clk 0:01:27.4]} 18. Bxf6 {[%clk
0:01:34.9]} 18... Bxf6 {[%clk 0:01:22.6]} 19. Nh5 {[%clk 0:01:35]} 19... Bxc3
{[%clk 0:01:05.8]} 20. Qxg5+ {[%clk 0:01:32.8]} 20... Kh8 {[%clk 0:01:04.3]} 21.
bxc3 {[%clk 0:01:32.3]} 21... Qxc3 {[%clk 0:01:03.8]} 22. Rd3 {[%clk 0:01:11.9]}
22... Qb2 {[%clk 0:01:02.2]} 23. c4 {[%clk 0:00:33.2]} 23... Rg8 {[%clk
0:00:52.6]} 24. Qd2 {[%clk 0:00:33.1]} 24... Qxd2 {[%clk 0:00:50.7]} 25. Rxd2
{[%clk 0:00:34]} 25... Rg5 {[%clk 0:00:41.4]} 26. Ng3 {[%clk 0:00:34]} 26... e6
{[%clk 0:00:37.5]} 27. d6 {[%clk 0:00:28]} 27... Rc5 {[%clk 0:00:34.6]} 28. Ra1
{[%clk 0:00:25.7]} 28... a5 {[%clk 0:00:34.1]} 29. Ne4 {[%clk 0:00:25]} 29...
Bxe4 {[%clk 0:00:31.4]} 30. fxe4 {[%clk 0:00:25.9]} 30... f6 {[%clk 0:00:28.2]}
31. Kf2 {[%clk 0:00:22.5]} 31... Rc6 {[%clk 0:00:25.8]} 32. Rad1 {[%clk
0:00:19.1]} 32... Kg7 {[%clk 0:00:23.4]} 33. d7 {[%clk 0:00:18.8]} 33... Kf7
{[%clk 0:00:20.5]} 34. Rd6 {[%clk 0:00:19]} 34... Rc7 {[%clk 0:00:19.2]} 35.
Rxb6 {[%clk 0:00:16.8]} 35... Rcxd7 {[%clk 0:00:19.6]} 36. Rxd7+ {[%clk
0:00:17.5]} 36... Rxd7 {[%clk 0:00:20.5]} 37. Ke3 {[%clk 0:00:17.3]} 37... Ra7
{[%clk 0:00:19.5]} 38. c5 {[%clk 0:00:16.9]} 38... a4 {[%clk 0:00:19.7]} 39.
bxa4 {[%clk 0:00:17.8]} 39... Rxa4 {[%clk 0:00:19.6]} 40. Rb7+ {[%clk
0:00:16.6]} 40... Ke8 {[%clk 0:00:17]} 41. Rxh7 {[%clk 0:00:14.8]} 41... Rc4
{[%clk 0:00:17.1]} 42. Rc7 {[%clk 0:00:14.7]} 42... Kd8 {[%clk 0:00:16.5]} 43.
Rf7 {[%clk 0:00:14.7]} 43... Rc2 {[%clk 0:00:15.8]} 44. Rxf6 {[%clk 0:00:13.1]}
44... Rxg2 {[%clk 0:00:15.9]} 45. Rxe6 {[%clk 0:00:13.1]} 45... Rxh2 {[%clk
0:00:16.4]} 46. Kd4 {[%clk 0:00:13.7]} 46... Kd7 {[%clk 0:00:16.2]} 47. Rd6+
{[%clk 0:00:14]} 47... Kc7 {[%clk 0:00:16.6]} 48. Rg6 {[%clk 0:00:14.9]} 48...
Rd2+ {[%clk 0:00:15.7]} 49. Ke5 {[%clk 0:00:15.2]} 49... Rc2 {[%clk 0:00:15.5]}
50. Kd5 {[%clk 0:00:15.1]} 50... Rd2+ {[%clk 0:00:14.5]} 51. Ke6 {[%clk
0:00:15.3]} 51... Kc6 {[%clk 0:00:11.7]} 52. e5 {[%clk 0:00:15.2]} 52... Kxc5
{[%clk 0:00:11.2]} 53. Rg1 {[%clk 0:00:14.7]} 53... Rc2 {[%clk 0:00:11.2]} 54.
Ke7 {[%clk 0:00:14]} 54... Kc6 {[%clk 0:00:11.4]} 55. e6 {[%clk 0:00:14.2]}
55... Kc7 {[%clk 0:00:11.8]} 56. Rd1 {[%clk 0:00:11.6]} 56... Rc3 {[%clk
0:00:10.5]} 57. Ke8 {[%clk 0:00:11.3]} 57... Kc8 {[%clk 0:00:10.8]} 58. e7
{[%clk 0:00:11.3]} 58... Rc2 {[%clk 0:00:11.1]} 59. Rf1 {[%clk 0:00:10.9]} 1-0